fUST/lending_fUST_20250411
["ID","MTS","AMOUNT","RATE_DAILY","PERIOD"]
[357705650,1744355239844,-500.0,0.00060273,120]
[357705651,1744355239889,-500.0,0.00060273,120]
[357705652,1744355239933,-2791.31,0.00060273,120]
[357705653,1744355239975,-3000.0,0.000625,120]
[357705654,1744355240020,-3000.0,0.000625,120]
[357705655,1744355240067,-500.0,0.00065753,120]
[357705656,1744355240111,-500.0,0.00065753,120]
[357705657,1744355240153,-500.0,0.00065753,120]
[357705658,1744355240195,-500.0,0.00065753,120]
[357705659,1744355240237,-176.26569068,0.00065753,120]
[357705660,1744355240279,-2791.31,0.00065753,120]
[357705661,1744355240325,-151.0,0.00068493,120]
[357705662,1744355240370,-974241.71949367,0.00068493,59]
[357705663,1744355244041,-505.05817322,0.00054794,120]
[357705664,1744355244087,-500.0,0.00054794,120]
[357705665,1744355244133,-500.0,0.00054794,120]
[357705666,1744355244178,-960.43,0.00054794,120]
[357705667,1744355244224,-500.0,0.00060273,120]
[357705668,1744355244270,-500.0,0.00060273,120]
[357705669,1744355244316,-960.43,0.00060273,120]
[357705670,1744355244360,-500.0,0.00065753,120]
[357705671,1744355244405,-500.0,0.00065753,120]
[357705672,1744355244450,-960.43,0.00065753,120]
[357705673,1744355244495,-993613.65182678,0.00068493,59]
[357705675,1744355249248,-1541.72,0.00054794,120]
[357705676,1744355249299,-500.0,0.00054794,120]
[357705677,1744355249349,-500.0,0.00054794,120]
[357705678,1744355249400,-500.0,0.00054794,120]
[357705679,1744355249450,-500.0,0.00054794,120]
[357705680,1744355249499,-538.63,0.00054794,120]
[357705681,1744355249548,-500.0,0.00054794,120]
[357705682,1744355249597,-500.0,0.00054794,120]
[357705683,1744355249647,-1541.72,0.00060273,120]
[357705684,1744355249697,-514.06309107,0.00060273,120]
[357705685,1744355249744,-500.0,0.00060273,120]
[357705686,1744355249793,-510.71040997,0.00060273,120]
[357705687,1744355249842,-500.0,0.00060273,120]
[357705688,1744355249889,-538.63,0.00060273,120]
[357705689,1744355249937,-501.0556564,0.00060273,120]
[357705690,1744355249986,-500.0,0.00060273,120]
[357705691,1744355250037,-1541.72,0.00065753,120]
[357705692,1744355250343,-500.0,0.00065753,120]
[357705693,1744355250394,-500.0,0.00065753,120]
[357705694,1744355250440,-538.63,0.00065753,120]
[357705695,1744355250487,-500.0,0.00065753,120]
[357705696,1744355250530,-3000.0,0.000675,120]
[357705697,1744355250575,-983233.12084256,0.00068493,59]
[357705698,1744355255581,-520.21,0.00054794,120]
[357705699,1744355255630,-503.45831694,0.00054794,120]
[357705700,1744355255678,-500.0,0.00054794,120]
[357705701,1744355255729,-520.21,0.00060273,120]
[357705702,1744355255777,-500.0,0.00060273,120]
[357705703,1744355255826,-520.21,0.00065753,120]
[357705704,1744355255877,-500.0,0.00065753,120]
[357705705,1744355255927,-3697.82228355,0.00068493,61]
[357705706,1744355255978,-992738.08939951,0.00068493,59]
[357705707,1744355259254,-500.0,0.00054794,120]
[357705708,1744355259303,-500.0,0.00060273,120]
[357705709,1744355259349,-500.0,0.00065753,120]
[357705710,1744355259394,-998500.0,0.00068493,59]
[357705711,1744355262981,-500.0,0.00054,120]
[357705712,1744355263029,-500.0,0.00054794,120]
[357705713,1744355263076,-500.0,0.00054794,120]
[357705714,1744355263119,-503.56704439,0.00054794,120]
[357705715,1744355263173,-513.86315458,0.00054794,120]
[357705716,1744355263225,-500.0,0.00054794,120]
[357705717,1744355263276,-500.0,0.00060273,120]
[357705718,1744355263323,-503.4643726,0.00060273,120]
[357705719,1744355263368,-500.0,0.00060273,120]
[357705720,1744355263417,-500.0,0.00065753,120]
[357705721,1744355263463,-500.0,0.00065753,120]
[357705722,1744355263507,-3000.0,0.000675,120]
[357705723,1744355263552,-100710.21041941,0.00068493,59]
[357705724,1744355263654,503.21911085,0.00054794,120]
[357705725,1744355264115,500.0,0.00054794,120]
[357705726,1744355264384,508.3036449,0.00060273,120]
[357705727,1744355264774,3000.0,0.000675,120]
[357705728,1744355265412,531.08,0.00054794,120]
[357705729,1744355265633,500.0,0.00054794,120]
[357705730,1744355265685,531.08,0.00060273,120]
[357705731,1744355265917,531.08,0.00065753,120]
[357705732,1744355265970,500.0,0.00060273,120]
[357705733,1744355266200,500.0,0.00065753,120]
[357705734,1744355266389,664.05,0.00054794,120]
[357705735,1744355266628,664.05,0.00060273,120]
[357705736,1744355266879,664.05,0.00065753,120]
[357705737,1744355267653,200.22775,0.00049883,120]
[357705738,1744355269703,2000.0,0.00054,120]
[357705739,1744355269926,519.39966682,0.00054794,120]
[357705740,1744355270418,532.92506608,0.00054794,120]
[357705741,1744355270684,500.0,0.00054794,120]
[357705742,1744355270922,500.0,0.00060273,120]
[357705743,1744355271204,500.0,0.00065753,120]
[357705744,1744355271695,419.71244257,0.00044,120]
[357705745,1744355272188,3000.0,0.000675,120]
[357705746,1744355272320,504.73867728,0.00054794,120]
[357705747,1744355275878,246.26078551,0.00054794,120]
[357705807,1744355431679,-262.0,0.0001989,2]
[357705810,1744355431689,-300.0,0.00019898,2]
[357705812,1744355431699,-422.67699758,0.00019899,2]
[357705813,1744355431708,-500.0,0.00019899,2]
[357705815,1744355431718,-272.33999689,0.00019899,2]
[357705840,1744355438004,-500.0,0.00019898,2]
[357705841,1744355438015,-500.0,0.00019898,2]
[357705842,1744355438025,-500.0,0.00019898,2]
[357705843,1744355438035,-260.73548812,0.00019898,2]
[357705844,1744355438047,-220.89898336,0.00019898,2]
[357705845,1744355438057,-500.0,0.00019898,2]
[357705846,1744355438067,-500.0,0.00019898,2]
[357705847,1744355438076,-500.0,0.00019898,2]
[357705848,1744355438086,-500.0,0.00019898,2]
[357705849,1744355438096,-500.0,0.00019898,2]
[357705850,1744355438106,-500.0,0.00019898,2]
[357705852,1744355438203,-500.0,0.00019898,2]
[357705853,1744355438213,-500.0,0.00019898,2]
[357705854,1744355438223,-500.0,0.00019898,2]
[357705855,1744355438233,-500.0,0.00019898,2]
[357705856,1744355438243,-500.0,0.00019898,2]
[357705858,1744355438252,-500.0,0.00019898,2]
[357705859,1744355438262,-500.0,0.00019898,2]
[357705860,1744355438271,-542.12896396,0.00019898,2]
[357705861,1744355438283,-31.38381595,0.00019898,2]
[357705862,1744355438293,-500.0,0.00019898,2]
[357705863,1744355438303,-500.0,0.00019898,2]
[357705864,1744355438312,-500.0,0.00019898,2]
[357705865,1744355438322,-203.91350859,0.00019899,2]
[357705866,1744355438331,-372.20581929,0.00019899,2]
[357705867,1744355438341,-500.0,0.00019899,2]
[357705868,1744355438350,-979.74974454,0.000199,2]
[357705869,1744355438359,-330.48,0.0002,2]
[357705870,1744355438369,-500.0,0.00020038,2]
[357705871,1744355438380,-500.0,0.00020038,2]
[357705872,1744355438393,-500.0,0.00020038,2]
[357705873,1744355438403,-500.0,0.00020038,2]
[357705874,1744355438413,-500.0,0.00020038,2]
[357705875,1744355438423,-500.0,0.00020038,2]
[357705876,1744355438432,-500.0,0.00020038,2]
[357705877,1744355438441,-520.15977207,0.00020038,2]
[357705878,1744355438451,-500.0,0.00020038,2]
[357705879,1744355438460,-12247.7696179,0.00020851,2]
[357705880,1744355438469,-156.66,0.00021,2]
[357705881,1744355438479,-160.0,0.00021259,2]
[357705882,1744355438488,-420.0,0.00021669,2]
[357705883,1744355438497,-250.0,0.00021697,2]
[357705884,1744355438507,-616.10276172,0.00021918,2]
[357705885,1744355438516,-191.6541797,0.00022016,2]
[357705886,1744355438527,-21429.5631622,0.00023057,2]
[357705887,1744355438536,-500.0,0.00023073,2]
[357705888,1744355438545,-500.0,0.00023073,2]
[357705889,1744355438554,-500.0,0.00023073,2]
[357705890,1744355438564,-500.0,0.00023073,2]
[357705891,1744355438573,-500.0,0.00023073,2]
[357705892,1744355438582,-500.0,0.00023073,2]
[357705893,1744355438591,-500.0,0.00023576,2]
[357705894,1744355438601,-500.0,0.00023576,2]
[357705895,1744355438610,-456.0,0.00023598,2]
[357705896,1744355438618,-500.0,0.00023715,2]
[357705897,1744355438628,-500.0,0.00023715,2]
[357705898,1744355438637,-500.0,0.00023715,2]
[357705899,1744355438647,-500.0,0.00023874,2]
[357705900,1744355438656,-500.0,0.00023874,2]
[357705901,1744355438665,-500.0,0.00023874,2]
[357705902,1744355438675,-63.06861326,0.00023874,2]
[357705903,1744355438699,-206.10284935,0.00023874,2]
[357705904,1744355438709,-500.0,0.00023874,2]
[357705905,1744355438719,-500.0,0.00023874,2]
[357705906,1744355438728,-500.0,0.00023874,2]
[357705907,1744355438737,-619.0,0.00024,2]
[357705908,1744355438747,-500.0,0.00024221,2]
[357705909,1744355438756,-500.0,0.00024221,2]
[357705910,1744355438766,-500.0,0.00024221,2]
[357705911,1744355438775,-1002.540393,0.000244,2]
[357705912,1744355438785,-564.73973983,0.00024487,2]
[357705913,1744355438794,-545.22943632,0.00024625,2]
[357705914,1744355438803,-832.58,0.0002464,3]
[357705915,1744355438813,-952883.45467314,0.0002465,2]
[357706044,1744355864112,500.0,0.0002399,120]
[357706045,1744355864867,500.0,0.0002399,120]
[357706046,1744355865701,500.0,0.0002399,120]
[357706047,1744355866465,500.0,0.0002399,120]
[357706048,1744355867216,500.0,0.0002399,120]
[357706049,1744355867978,500.0,0.0002399,120]
[357706050,1744355868730,500.0,0.0002399,120]
[357706051,1744355869568,500.0,0.0002399,120]
[357706052,1744355870326,500.0,0.0002399,120]
[357706053,1744355871085,500.0,0.0002399,120]
[357706054,1744355872287,500.0,0.0002399,120]
[357706055,1744355873147,500.0,0.0002399,120]
[357706056,1744355873845,500.0,0.0002399,120]
[357706057,1744355874664,500.0,0.0002399,120]
[357706058,1744355875422,500.0,0.0002399,120]
[357706059,1744355876191,500.0,0.0002399,120]
[357706060,1744355876939,500.0,0.0002399,120]
[357706061,1744355878016,500.0,0.0002399,120]
[357706062,1744355878440,500.0,0.0002399,120]
[357706063,1744355879202,500.0,0.0002399,120]
[357706064,1744355879969,500.0,0.0002399,120]
[357706065,1744355880739,500.0,0.0002399,120]
[357706066,1744355881494,500.0,0.0002399,120]
[357706067,1744355882262,500.0,0.0002399,120]
[357706068,1744355883022,500.0,0.0002399,120]
[357706069,1744355883786,500.0,0.0002399,120]
[357706070,1744355884548,500.0,0.0002399,120]
[357706071,1744355885320,500.0,0.0002399,120]
[357706072,1744355886177,500.0,0.0002399,120]
[357706073,1744355886947,500.0,0.0002399,120]
[357706074,1744355887717,500.0,0.0002399,120]
[357706075,1744355888551,500.0,0.0002399,120]
[357706076,1744355889249,500.0,0.0002399,120]
[357706077,1744355890113,500.0,0.0002399,120]
[357706078,1744355890864,500.0,0.0002399,120]
[357706079,1744355891619,355.67,0.0002399,120]
[357706080,1744356004890,400.88,0.00025001,120]
[357706102,1744356533488,608.31793722,0.0001516,7]
[357706128,1744356631939,-151.95050983,0.0001728,2]
[357706129,1744356631949,-2053.71874848,0.000176,2]
[357706130,1744356631958,-420.22340578,0.000189,2]
[357706131,1744356631968,-500.0,0.00019204,2]
[357706132,1744356631977,-193.14288463,0.00019204,2]
[357706133,1744356631986,-206.70431193,0.00019204,2]
[357706134,1744356631997,-254.03798579,0.00019204,2]
[357706196,1744356646140,-458.15384449,0.00017599,2]
[357706197,1744356646149,-198.82300211,0.00019204,2]
[357706198,1744356646161,-101.17699789,0.00019204,2]
[357706199,1744356646171,-300.0,0.00019204,2]
[357706200,1744356646181,-2015.83235074,0.00019205,5]
[357706201,1744356646190,-610.5440735,0.00019649,2]
[357706203,1744356646199,-500.0,0.0001965,2]
[357706204,1744356646211,-500.0,0.0001965,2]
[357706205,1744356646221,-500.0,0.0001965,2]
[357706206,1744356646230,-319.54332596,0.0001965,2]
[357706207,1744356646240,-434.14992247,0.0001965,2]
[357706208,1744356646251,-500.0,0.0001965,2]
[357706209,1744356646261,-534.15707699,0.0001965,2]
[357706211,1744356646270,-500.0,0.0001965,2]
[357706213,1744356646280,-500.0,0.0001965,2]
[357706215,1744356646291,-500.0,0.0001965,2]
[357706217,1744356646301,-500.0,0.0001965,2]
[357706219,1744356646311,-500.0,0.0001965,2]
[357706221,1744356646320,-500.0,0.0001965,2]
[357706223,1744356646329,-500.0,0.0001965,2]
[357706225,1744356646338,-500.0,0.0001965,2]
[357706227,1744356646348,-520.49710282,0.0001965,2]
[357706229,1744356646357,-500.0,0.0001965,2]
[357706231,1744356646367,-507.15127203,0.0001965,2]
[357706233,1744356646377,-500.0,0.0001965,2]
[357706234,1744356646386,-500.0,0.0001965,2]
[357706235,1744356646395,-500.0,0.0001965,2]
[357706236,1744356646405,-500.0,0.0001965,2]
[357706237,1744356646414,-500.0,0.0001965,2]
[357706238,1744356646424,-500.0,0.0001965,2]
[357706239,1744356646433,-500.0,0.0001965,2]
[357706240,1744356646443,-609.68623438,0.0001965,2]
[357706241,1744356646452,-500.0,0.0001965,2]
[357706242,1744356646462,-500.0,0.0001965,2]
[357706243,1744356646472,-500.0,0.0001965,2]
[357706244,1744356646481,-958.41378297,0.000199,2]
[357706245,1744356646490,-369.5,0.0002,2]
[357706246,1744356646500,-160.0,0.0002,3]
[357706247,1744356646509,-357.29937764,0.0002,2]
[357706248,1744356646518,-1177.54489314,0.0002,2]
[357706249,1744356646527,-1144.31435928,0.0002,2]
[357706250,1744356646536,-1098.241179,0.0002061,2]
[357706251,1744356646545,-420.0,0.00020927,2]
[357706252,1744356646555,-44.94805119,0.00020927,2]
[357706253,1744356646569,-375.05194881,0.00020927,2]
[357706254,1744356646578,-529.05864062,0.00021,2]
[357706255,1744356646588,-266.05970947,0.00021,2]
[357706256,1744356646597,-164.62627224,0.00021,2]
[357706257,1744356646607,-958.41378273,0.00021452,3]
[357706258,1744356646617,-347.90258643,0.00022,2]
[357706259,1744356646627,-1000.0,0.00022,2]
[357706260,1744356646636,-290.72627963,0.000221,2]
[357706261,1744356646646,-156.66,0.000221,2]
[357706262,1744356646656,-837.98236364,0.00022308,2]
[357706263,1744356646665,-160.0,0.00022424,2]
[357706264,1744356646675,-1662.45837158,0.00022465,2]
[357706265,1744356646685,-587.0,0.00022806,2]
[357706266,1744356646695,-287.0,0.00022806,2]
[357706267,1744356646705,-246.363138,0.00023,2]
[357706268,1744356646714,-203.27945062,0.00023,2]
[357706269,1744356646724,-958.41378273,0.00023003,4]
[357706270,1744356646734,-1299.2328383,0.00023379,7]
[357706271,1744356646743,-419.71244257,0.00023391,2]
[357706272,1744356646752,-160.0,0.00023391,2]
[357706273,1744356646761,-160.0,0.00023391,2]
[357706274,1744356646769,-1435.057321,0.000234,2]
[357706275,1744356646779,-1000.0,0.000239,2]
[357706276,1744356646787,-1671.99266065,0.00024,2]
[357706277,1744356646796,-154.0,0.00024,2]
[357706278,1744356646805,-151.675928,0.00024202,2]
[357706279,1744356646816,-1338.2944174,0.0002424,2]
[357706280,1744356646825,-1000.0,0.000244,2]
[357706281,1744356646834,-958.41378273,0.00024555,5]
[357706282,1744356646844,-151.0,0.00024636,2]
[357706283,1744356646854,-195.98,0.00024641,2]
[357706284,1744356646863,-41520.3398616,0.0002465,2]
[357706285,1744356646875,-20950.61876603,0.0002465,2]
[357706286,1744356646886,-34267.9736342,0.0002465,2]
[357706357,1744357838662,-332.55,0.0002,2]
[357706358,1744357838673,-160.0,0.0002,3]
[357706360,1744357838683,-18.64700555,0.0002,3]
[357706362,1744357838695,-141.35299445,0.0002,3]
[357706365,1744357838705,-550.78592837,0.00022299,2]
[357706366,1744357838715,-3347.9739428,0.000223,2]
[357706367,1744357838724,-195.98,0.0002232,2]
[357706368,1744357838734,-300.0,0.00022329,2]
[357706369,1744357838744,-427.38085145,0.00022329,2]
[357706370,1744357838754,-156.66,0.0002233,2]
[357706371,1744357838764,-419.71244257,0.00022357,2]
[357706372,1744357838774,-160.0,0.00022357,2]
[357706373,1744357838784,-160.0,0.00022357,2]
[357706374,1744357838794,-500.0,0.00022373,2]
[357706375,1744357838804,-500.0,0.00022373,2]
[357706376,1744357838814,-164.5930202,0.00022373,2]
[357706377,1744357838823,-194.12119726,0.00022373,2]
[357706378,1744357838833,-500.0,0.00022373,2]
[357706379,1744357838843,-500.0,0.00022373,2]
[357706380,1744357838852,-500.0,0.00022373,2]
[357706381,1744357838861,-500.0,0.00022373,2]
[357706382,1744357838872,-500.0,0.00022373,2]
[357706383,1744357838882,-500.0,0.00022373,2]
[357706384,1744357838892,-500.0,0.00022373,2]
[357706385,1744357838902,-539.02075636,0.00022373,2]
[357706386,1744357838912,-500.0,0.00022373,2]
[357706387,1744357838922,-500.0,0.00022373,2]
[357706388,1744357838931,-500.0,0.00022373,2]
[357706389,1744357838941,-500.0,0.00022373,2]
[357706390,1744357838950,-1102.53,0.00022399,2]
[357706391,1744357838960,-500.0,0.000224,2]
[357706392,1744357838970,-500.0,0.000224,2]
[357706393,1744357838980,-500.0,0.000224,2]
[357706394,1744357838989,-506.0,0.000224,2]
[357706395,1744357838999,-500.0,0.000224,2]
[357706396,1744357839008,-500.0,0.000224,2]
[357706397,1744357839017,-243.46146638,0.000224,2]
[357706398,1744357839026,-500.0,0.000224,2]
[357706399,1744357839036,-500.0,0.000224,2]
[357706400,1744357839046,-500.0,0.000224,2]
[357706401,1744357839056,-500.0,0.000224,2]
[357706402,1744357839065,-241.08456532,0.000224,2]
[357706403,1744357839075,-500.0,0.000224,2]
[357706404,1744357839085,-500.0,0.000224,2]
[357706405,1744357839095,-500.0,0.000224,2]
[357706406,1744357839104,-500.0,0.000224,2]
[357706407,1744357839114,-500.0,0.000224,2]
[357706408,1744357839124,-502.70708285,0.000224,2]
[357706409,1744357839145,-500.0,0.000224,2]
[357706410,1744357839157,-501.16091934,0.000224,2]
[357706411,1744357839167,-500.0,0.000224,2]
[357706412,1744357839177,-500.0,0.000224,2]
[357706413,1744357839187,-534.91149506,0.000224,2]
[357706414,1744357839198,-500.0,0.000224,2]
[357706415,1744357839208,-502.28042545,0.000224,2]
[357706416,1744357839218,-500.0,0.000224,2]
[357706417,1744357839370,-1000.0,0.00022948,2]
[357706418,1744357839380,-1102.53,0.00023399,2]
[357706419,1744357839390,-3146.67484416,0.000234,2]
[357706420,1744357839399,-1500.0,0.00023496,2]
[357706421,1744357839409,-151.0,0.00023496,2]
[357706422,1744357839419,-151.0,0.00023496,2]
[357706423,1744357839428,-151.0,0.00023496,2]
[357706424,1744357839438,-297.0392009,0.00023496,2]
[357706425,1744357839448,-151.0,0.00023496,2]
[357706426,1744357839457,-151.0,0.00023496,2]
[357706427,1744357839467,-151.0,0.00023496,2]
[357706428,1744357839477,-297.07430098,0.00023496,2]
[357706429,1744357839487,-300.12587978,0.00023496,2]
[357706430,1744357839497,-300.31010242,0.00023496,2]
[357706431,1744357839507,-151.0,0.00023496,2]
[357706432,1744357839517,-152.8904732,0.00023496,2]
[357706433,1744357839527,-300.08041965,0.00023496,2]
[357706434,1744357839536,-151.0,0.00023496,2]
[357706435,1744357839546,-151.0,0.00023496,2]
[357706436,1744357839555,-298.0,0.00023496,2]
[357706437,1744357839568,-1205.18445981,0.000239,5]
[357706438,1744357839578,-969.94998875,0.00024,4]
[357706439,1744357839588,-2000.0,0.00024044,2]
[357706440,1744357839599,-379.96023409,0.00024229,2]
[357706441,1744357839609,-1003.7208131,0.0002424,2]
[357706442,1744357839619,-300.0,0.0002424,2]
[357706443,1744357839630,-420.0,0.00024256,2]
[357706444,1744357839642,-413.72226647,0.000245,2]
[357706445,1744357839652,-393.04,0.00024541,3]
[357706446,1744357839662,-39028.09486105,0.0002455,2]
[357706447,1744357839675,-860.08543018,0.0002455,2]
[357706448,1744357839686,-4162.29886903,0.0002455,2]
[357706449,1744357839698,-342.79858421,0.0002455,2]
[357706531,1744357846666,-160.0,0.00022917,2]
[357706532,1744357846676,-2042.46970124,0.0002455,2]
[357706533,1744357847046,-6089.41620059,0.0002455,2]
[357706534,1744357847061,-10925.3721529,0.0002455,2]
[357706562,1744359032747,-250.0,0.000199,2]
[357706563,1744359032759,-689.52,0.00019982,2]
[357706564,1744359032773,-546.5234774,0.00019982,2]
[357706565,1744359032784,-299.29,0.0002,2]
[357706566,1744359032796,-160.0,0.0002,3]
[357706567,1744359032807,-160.0,0.0002,3]
[357706569,1744359032819,-158.0169531,0.00020032,2]
[357706571,1744359032830,-207.4,0.00020987,2]
[357706573,1744359032841,-151.0,0.00020987,2]
[357706575,1744359032853,-151.0,0.00020987,2]
[357706577,1744359032869,-2929.47719995,0.0002099,2]
[357706579,1744359032880,-3000.0,0.00021,2]
[357706581,1744359032891,-3000.0,0.0002101,2]
[357706583,1744359032902,-3000.0,0.0002102,2]
[357706585,1744359032912,-195.98,0.0002102,2]
[357706587,1744359032923,-3000.0,0.0002103,2]
[357706589,1744359032933,-156.66,0.0002103,2]
[357706591,1744359032944,-424.34029043,0.00021039,2]
[357706600,1744359032954,-3000.0,0.0002104,2]
[357706603,1744359033061,-156.587,0.00021042,2]
[357706604,1744359033072,-1010.65,0.00021049,2]
[357706606,1744359033083,-3000.0,0.0002105,2]
[357706608,1744359033094,-3000.0,0.0002106,2]
[357706609,1744359033105,-3000.0,0.0002107,2]
[357706611,1744359033119,-3000.0,0.0002108,2]
[357706612,1744359033130,-3000.0,0.0002109,2]
[357706614,1744359033141,-162.380719,0.00021097,2]
[357706615,1744359033153,-3000.0,0.000211,2]
[357706617,1744359033164,-3000.0,0.0002111,2]
[357706618,1744359033176,-1010.65,0.00021119,2]
[357706620,1744359033187,-3000.0,0.0002112,2]
[357706622,1744359033198,-3000.0,0.0002113,2]
[357706623,1744359033208,-3000.0,0.0002114,2]
[357706624,1744359033218,-3000.0,0.0002115,2]
[357706625,1744359033229,-168.3888056,0.00021152,2]
[357706626,1744359033240,-3000.0,0.0002116,2]
[357706627,1744359033250,-3000.0,0.0002117,2]
[357706628,1744359033262,-500.0,0.00021173,2]
[357706629,1744359033272,-452.76499019,0.00021173,2]
[357706630,1744359033283,-1010.65,0.00021179,2]
[357706631,1744359033294,-3000.0,0.0002118,2]
[357706632,1744359033303,-3000.0,0.0002119,2]
[357706633,1744359033314,-3000.0,0.000212,2]
[357706634,1744359033325,-174.61919141,0.00021207,2]
[357706635,1744359033335,-3000.0,0.0002121,2]
[357706636,1744359033345,-342.47759982,0.0002122,2]
[357706637,1744359033359,-2657.52240018,0.0002122,2]
[357706638,1744359033374,-3000.0,0.0002123,2]
[357706639,1744359033385,-330.9778132,0.0002123,2]
[357706640,1744359033395,-1010.65,0.00021239,2]
[357706641,1744359033405,-3000.0,0.0002124,2]
[357706642,1744359033415,-2673.26265479,0.0002125,2]
[357706665,1744359038630,-326.73734521,0.0002125,2]
[357706667,1744359038641,-3000.0,0.0002126,2]
[357706669,1744359038651,-181.08010149,0.00021262,2]
[357706671,1744359038661,-3000.0,0.0002127,2]
[357706673,1744359038671,-5856.96967572,0.00021272,2]
[357706675,1744359038681,-3048.01379598,0.00021272,3]
[357706677,1744359038690,-500.0,0.00021273,2]
[357706679,1744359038700,-500.0,0.00021273,2]
[357706681,1744359038710,-500.0,0.00021273,2]
[357706683,1744359038720,-500.0,0.00021273,2]
[357706685,1744359038730,-500.0,0.00021273,2]
[357706687,1744359038740,-69.09045683,0.00021273,2]
[357706758,1744359045998,-207.4,0.00020987,2]
[357706760,1744359046009,-135.62696369,0.00021273,2]
[357706762,1744359046022,-295.28257948,0.00021273,2]
[357706764,1744359046032,-155.58935545,0.00021273,2]
[357706775,1744359046680,-344.41064455,0.00021273,2]
[357706776,1744359046690,-409.08935545,0.00021273,2]
[357706777,1744359046702,-90.91064455,0.00021273,2]
[357706778,1744359046711,-500.0,0.00021273,2]
[357706779,1744359046721,-500.0,0.00021273,2]
[357706780,1744359046730,-500.0,0.00021273,2]
[357706781,1744359046740,-500.0,0.00021273,2]
[357706782,1744359046750,-500.0,0.00021273,2]
[357706783,1744359046759,-500.0,0.00021273,2]
[357706784,1744359046768,-500.0,0.00021273,2]
[357706785,1744359046778,-500.0,0.00021273,2]
[357706786,1744359046788,-500.0,0.00021273,2]
[357706787,1744359046798,-500.0,0.00021273,2]
[357706788,1744359046807,-459.16899051,0.00021273,2]
[357707171,1744361432661,-159.8651271,0.00018784,2]
[357707172,1744361432671,-403.005,0.00018854,2]
[357707173,1744361432683,-2928.48483786,0.00018855,2]
[357707174,1744361432692,-1524.00689799,0.00018855,3]
[357707175,1744361432702,-290.5612688,0.00018857,2]
[357707176,1744361432711,-250.0,0.00019071,2]
[357707177,1744361432721,-151.0,0.0001916,2]
[357707178,1744361432730,-207.4,0.0001916,2]
[357707179,1744361432740,-300.0,0.00019171,2]
[357707180,1744361432749,-17632.28596615,0.00019172,2]
[357707181,1744361432758,-297.03820331,0.00019897,2]
[357707182,1744361432768,-1165.01164428,0.000199,2]
[357707183,1744361432777,-269.36,0.0002,2]
[357707184,1744361432786,-160.0,0.0002,3]
[357707185,1744361432796,-160.0,0.0002,3]
[357707186,1744361432805,-151.0,0.00020529,2]
[357707187,1744361432815,-215.0738,0.00020529,2]
[357707188,1744361432824,-420.0,0.00020893,2]
[357707189,1744361432834,-2563.29254993,0.000209,2]
[357707190,1744361432843,-156.66,0.00021,2]
[357707191,1744361432853,-435.3274584,0.00021,2]
[357707192,1744361432863,-150.16945198,0.00021,2]
[357707193,1744361432872,-2731.9,0.00021109,2]
[357707194,1744361432881,-2731.9,0.00021109,2]
[357707195,1744361432891,-2731.9,0.00021109,2]
[357707196,1744361432904,-2731.9,0.00021109,2]